bitfinex/quotes_SOLUSD_20250821
["timestamp","ask_amount","ask_price","bid_price","bid_amount"]
[1755816517249,1e-08,181.78,181.77,27.23878722]
[1755816522545,1e-08,181.78,181.77,114.54601667]
[1755816531433,0.06,181.8,181.79,13.59559401]
[1755816531629,0.06,181.8,181.79,60.8783592]
[1755816531830,0.06,181.8,181.79,61.5683592]
[1755816532062,0.06,181.8,181.79,63.7730052]
[1755816532434,0.06,181.8,181.79,69.27385783]
[1755816537789,0.06,181.8,181.79,68.86818097]
[1755816542351,0.4,181.8,181.79,21.30109264]
[1755816542557,0.4,181.8,181.79,63.66109264]
[1755816542951,0.06,181.8,181.79,63.66109264]
[1755816543155,0.4,181.8,181.79,21.30109264]
[1755816543351,5.32276519,181.8,181.79,2.204646]
[1755816543553,0.4,181.8,181.79,2.204646]
[1755816543760,5.32276519,181.8,181.79,28.204646]
[1755816544747,0.06,181.8,181.79,28.204646]
[1755816545251,0.06,181.8,181.79,47.30109264]
[1755816545658,0.06,181.8,181.79,53.19818097]
[1755816546060,0.06,181.8,181.79,47.58541578]
[1755816546245,0.06,181.8,181.79,52.50818097]
[1755816546684,0.06,181.8,181.79,53.19818097]
[1755816551976,0.06,181.8,181.79,48.27541578]
[1755816552280,0.06,181.8,181.79,53.19818097]
[1755816559706,0.06,181.81,181.8,13.87991715]
[1755816559999,0.06,181.81,181.8,61.86268234]
[1755816560202,0.06,181.81,181.8,66.64323239]
[1755816560411,0.06,181.81,181.8,69.56775739]
[1755816560706,0.06,181.82,181.8,69.56775739]
[1755816560882,0.06,181.82,181.81,18.80268234]
[1755816561084,0.06,181.82,181.81,19.52268234]
[1755816561480,0.06,181.83,181.81,19.52268234]
[1755816561481,0.06,181.83,181.82,13.59559401]
[1755816561794,0.06,181.84,181.83,0.28432314]
[1755816561992,0.06,181.84,181.83,19.52268234]
[1755816562203,0.06,181.84,181.83,25.02232486]
[1755816562387,1e-08,181.84,181.83,24.30232486]
[1755816562583,1e-08,181.84,181.83,25.02232486]
[1755816566199,1e-08,181.84,181.83,27.22636386]
[1755816567591,1e-08,181.86,181.85,39.59559401]
[1755816567790,1e-08,181.86,181.85,60.8583592]
[1755816568008,0.34,181.92,181.91,13.59559401]
[1755816568309,0.34,181.92,181.91,19.09281791]
[1755816568915,3.70553386,181.99,181.94,26.0]
[1755816569121,4.92276519,181.95,181.94,26.0]
[1755816569719,5.26276519,181.95,181.94,42.52756]
[1755816572815,0.34,181.95,181.94,42.52756]
[1755816573106,5.26276519,181.95,181.94,42.52756]
[1755816574008,4.92276519,181.95,181.94,48.02387746]
[1755816575307,0.06,181.95,181.94,48.02387746]
[1755816576107,0.06,181.95,181.94,61.61947147]
[1755816576293,0.06,181.95,181.94,62.33947147]
[1755816580122,0.06,181.95,181.94,67.26223666]
[1755816582493,0.06,181.95,181.94,109.58223666]
[1755816584522,0.06,181.95,181.94,98.44315401]
[1755816584817,0.06,181.95,181.94,56.12315401]
[1755816585817,0.06,181.95,181.94,61.61947147]
[1755816588203,0.06,181.95,181.94,56.12315401]
[1755816588408,0.06,181.95,181.94,42.52756]
[1755816590992,5.32276519,181.95,181.94,42.52756]
[1755816591197,4.98276519,181.95,181.94,42.52756]
[1755816591397,0.06,181.95,181.94,22.02387746]
[1755816592028,0.06,181.95,181.94,22.71387746]
[1755816593497,0.06,181.95,181.94,36.30947147]
[1755816595611,0.06,181.95,181.94,83.53223666]
[1755816597248,0.06,181.95,181.94,83.8165598]
[1755816597534,1e-08,181.95,181.94,83.8165598]
[1755816600950,1e-08,181.97,181.96,13.87991715]
[1755816601124,1e-08,181.97,181.96,61.10268234]
[1755816601435,1e-08,181.97,181.96,61.79268234]
[1755816601644,1e-08,181.97,181.96,20.06563049]
[1755816601841,1e-08,181.97,181.96,67.28839568]
[1755816602025,1e-08,181.97,181.96,62.36563049]
[1755816602227,1e-08,181.97,181.96,61.39130735]
[1755816602431,1e-08,181.97,181.96,67.00407254]
[1755816602620,1e-08,181.97,181.96,67.28839568]
[1755816604751,1e-08,181.97,181.96,61.67563049]
[1755816606046,1e-08,181.97,181.96,19.37563049]
[1755816606226,1e-08,181.97,181.96,61.67563049]
[1755816606428,1e-08,181.97,181.96,66.59839568]
[1755816606840,1e-08,181.97,181.96,67.28839568]
[1755816608436,1e-08,181.97,181.96,67.31839568]
[1755816608829,1e-08,181.97,181.96,69.52073568]
[1755816609644,1e-08,181.99,181.98,39.59559401]
[1755816609953,1e-08,181.99,181.98,60.7983592]
[1755816610336,1e-08,181.99,181.98,83.21299753]
[1755816611920,1e-08,181.99,181.98,88.70810688]
[1755816612234,1e-08,181.99,181.98,83.78534169]
[1755816613242,1e-08,181.99,181.98,88.70810688]
[1755816617638,1e-08,181.99,181.98,88.70810688]
[1755816620132,1e-08,181.99,181.98,168.50810688]
[1755816625824,1e-08,181.99,181.98,168.53810688]
[1755816626938,47.20276519,182.13,182.09,26.0]
[1755816627135,47.20276519,182.13,182.1,26.0]
[1755816627333,4.92276519,182.12,182.1,26.0]
[1755816627523,0.34,182.11,182.1,26.0]
[1755816627730,0.34,182.11,182.1,31.49148819]
[1755816628347,0.34,182.11,182.1,26.0]
[1755816628550,4.92276519,182.14,182.1,31.49140106]
[1755816628750,0.34,182.13,182.1,31.49140106]
[1755816628954,0.34,182.12,182.1,31.49140106]
[1755816630649,5.26276519,182.16,182.14,26.0]
[1755816630847,0.34,182.15,182.14,26.0]
[1755816631133,5.26276519,182.15,182.14,26.0]
[1755816634335,0.34,182.15,182.14,26.0]
[1755816634641,0.34,182.15,182.13,5.49052275]
[1755816634833,0.34,182.17,182.16,26.0]
[1755816635048,4.92276519,182.18,182.16,26.0]
[1755816635261,5.26276519,182.18,182.16,26.0]
[1755816635438,0.34,182.17,182.16,26.0]
[1755816636972,0.06,182.19,182.16,26.0]
[1755816637137,5.32276519,182.19,182.17,26.0]
[1755816638161,0.34,182.18,182.17,26.0]
[1755816639240,4.98276519,182.19,182.17,26.0]
[1755816639654,5.32276519,182.19,182.17,26.0]
[1755816640873,5.26276519,182.18,182.17,26.0]
[1755816641377,10.18553038,182.18,182.08,5.49209138]
[1755816641661,4.92276519,182.11,182.09,16.511186]
[1755816641863,0.34,182.1,182.09,16.511186]
[1755816642049,5.26276519,182.1,182.02,0.67]
[1755816642360,4.92276519,182.07,182.06,16.514822]
[1755816642560,4.92276519,182.07,182.06,42.514822]
[1755816642765,4.92276519,182.07,182.06,16.514822]
[1755816643954,5.26276519,182.07,182.03,13.62559401]
[1755816644268,4.92276519,182.04,182.03,30.14041601]
[1755816644566,0.34,182.08,182.06,26.0]
[1755816644755,0.28432314,182.14,182.06,26.0]
[1755816645278,0.34,182.13,182.06,26.0]
[1755816645870,4.92276519,182.07,182.06,26.0]
[1755816646068,4.92276519,182.07,182.06,26.67]
[1755816646408,4.92276519,182.08,182.06,32.16263723]
[1755816647852,4.92276519,182.08,182.06,48.67745923]
[1755816648573,4.92276519,182.08,182.06,43.184822]
[1755816648771,4.92276519,182.07,182.06,26.0]
[1755816648953,5.26276519,182.07,182.06,26.0]
[1755816649670,4.92276519,182.07,182.06,26.0]
[1755816650465,4.92276519,182.07,182.05,26.0]
[1755816650764,4.92276519,182.06,182.05,26.0]
[1755816652686,4.92276519,182.07,182.06,26.0]
[1755816652865,4.92276519,182.07,182.06,26.68]
[1755816653070,4.92276519,182.07,182.06,26.0]
[1755816653865,4.92276519,182.07,182.06,26.68]
[1755816654280,4.92276519,182.07,182.06,0.68]
[1755816654480,4.92276519,182.07,182.06,26.0]
[1755816655469,4.92276519,182.07,182.05,26.0]
[1755816655682,4.92276519,182.06,182.05,26.0]
[1755816656487,4.92276519,182.06,182.04,16.516641]
[1755816656676,4.92276519,182.06,182.04,22.68991089]
[1755816657193,4.92276519,182.06,182.05,26.0]
[1755816658794,0.34,182.12,182.06,26.0]
[1755816658969,4.92276519,182.08,182.07,0.68]
[1755816659988,4.92276519,182.09,182.07,0.68]
[1755816660488,42.26,182.13,182.1,26.0]
[1755816660680,4.92276519,182.11,182.1,26.0]
[1755816660870,4.92276519,182.14,182.11,0.68]
[1755816661183,137.32276519,182.15,182.12,0.68]
[1755816661419,4.92276519,182.14,182.12,0.68]
[1755816663183,4.92276519,182.14,182.13,16.511187]
[1755816664591,4.92276519,182.14,182.13,17.191187]
[1755816664996,0.06,182.19,182.15,26.0]
[1755816665206,42.26,182.18,182.16,26.0]
[1755816665704,42.26,182.18,182.17,26.0]
[1755816666417,47.18276519,182.18,182.17,26.0]
[1755816667299,47.18276519,182.18,182.17,26.68]
[1755816667612,47.18276519,182.18,182.17,26.0]
[1755816667913,47.18276519,182.18,182.16,16.50846]
[1755816668290,47.18276519,182.18,182.16,17.18846]
[1755816669207,47.18276519,182.18,182.17,26.68]
[1755816669599,47.18276519,182.18,182.17,43.186644]
[1755816669988,42.26,182.18,182.17,43.186644]
[1755816671925,4.98276519,182.19,182.17,43.186644]
[1755816672089,4.98276519,182.19,182.18,0.68]
[1755816672288,4.98276519,182.19,182.18,26.0]
[1755816672717,4.98276519,182.19,182.18,43.185735]
[1755816673207,5.32276519,182.19,182.18,42.505735]
[1755816673410,5.32276519,182.19,182.16,26.0]
[1755816673635,4.92276519,182.17,182.15,16.508461]
[1755816673932,47.16276519,182.16,182.14,26.0]
[1755816674113,4.92276519,182.15,182.14,26.0]
[1755816674515,4.92276519,182.15,182.14,42.509369]
[1755816677935,4.92276519,182.15,182.11,19.08669867]
[1755816677936,4.92276519,182.15,182.12,26.0]
[1755816678143,42.24,182.16,182.13,26.0]
[1755816678328,0.34,182.15,182.13,26.0]
[1755816678533,42.24,182.16,182.11,26.0]
[1755816678832,42.24,182.16,182.14,26.0]
[1755816678833,0.34,182.15,182.14,26.0]
[1755816679244,5.26276519,182.15,182.1,26.0]
[1755816679446,5.26276519,182.15,182.1,43.183004]
[1755816679611,4.92276519,182.11,182.1,43.183004]
[1755816680026,47.16276519,182.13,182.1,43.183004]
[1755816680346,47.16276519,182.13,182.11,0.67]
[1755816680548,47.16276519,182.13,182.1,42.513004]
[1755816680710,47.16276519,182.13,182.12,0.67]
[1755816680909,42.24,182.13,182.12,0.67]
[1755816683537,42.24,182.13,182.12,17.181186]
[1755816685250,47.16276519,182.15,182.12,17.181186]
[1755816685449,47.16276519,182.15,182.14,26.0]
[1755816686341,47.16276519,182.15,182.14,26.67]
[1755816686848,47.16276519,182.15,182.14,0.67]
[1755816687017,47.16276519,182.15,182.13,26.0]
[1755816687217,4.92276519,182.14,182.13,26.0]
[1755816687729,5.26276519,182.14,182.13,26.0]
[1755816687934,5.26276519,182.14,182.11,26.0]
[1755816688245,4.92276519,182.12,182.1,16.513004]
[1755816688542,42.58,182.13,182.1,16.513004]
[1755816688543,47.16276519,182.11,182.1,16.513004]
[1755816688925,132.74,182.18,182.13,26.0]
[1755816689141,4.92276519,182.15,182.14,0.67]
[1755816689333,47.16276519,182.15,182.13,26.67]
[1755816689532,4.92276519,182.14,182.13,26.67]
[1755816689926,42.24,182.15,182.13,26.67]
[1755816690128,47.16276519,182.15,182.13,26.67]
[1755816690347,47.16276519,182.15,182.14,0.67]
[1755816691031,137.32276519,182.17,182.15,26.0]
[1755816691238,179.56276519,182.17,182.15,26.67]
[1755816691533,47.16276519,182.17,182.15,26.67]
[1755816691734,42.24,182.17,182.16,26.0]
[1755816691935,42.24,182.17,182.16,26.67]
[1755816696837,42.24,182.17,182.14,0.67]
[1755816697154,47.16276519,182.17,182.16,26.0]
[1755816699852,42.24,182.17,182.16,26.67]
[1755816700959,42.24,182.17,182.16,0.67]
[1755816702057,0.06,182.19,182.18,26.0]
[1755816702246,0.06,182.19,182.18,26.67]
[1755816702247,42.3,182.19,182.18,26.67]
[1755816703059,42.3,182.19,182.18,26.0]
[1755816703659,42.3,182.19,182.18,26.67]
[1755816704452,42.3,182.19,182.18,26.0]
[1755816706769,42.3,182.19,182.17,17.176644]
[1755816706770,47.56276519,182.19,182.17,16.506644]
[1755816706941,5.26276519,182.18,182.17,26.0]
[1755816707266,4.92276519,182.18,182.17,26.0]
[1755816708167,5.26276519,182.18,182.17,26.0]
[1755816709437,4.92276519,182.18,182.17,26.0]
[1755816711048,5.26276519,182.18,182.17,26.0]
[1755816711742,4.92276519,182.18,182.17,26.0]
[1755816712949,5.26276519,182.18,182.17,26.0]
[1755816713470,8.96649962,182.18,182.17,26.0]
[1755816714557,8.62649962,182.18,182.17,26.0]
[1755816716949,13.367392,182.18,182.17,26.0]
[1755816718370,13.027392,182.18,182.17,26.0]
[1755816718866,8.91082276,182.18,182.17,26.0]
[1755816719272,4.92276519,182.18,182.17,26.69]
[1755816719467,47.16276519,182.18,182.17,26.69]
[1755816720173,47.16276519,182.18,182.17,26.0]
[1755816720683,47.16276519,182.18,182.17,26.69]
[1755816721380,0.06,182.19,182.18,26.0]
[1755816721548,42.3,182.19,182.18,26.69]
[1755816723676,42.32,182.19,182.18,26.69]
[1755816725049,42.32,182.19,182.18,0.69]
[1755816725575,42.32,182.19,182.18,26.69]
[1755816726762,42.3,182.19,182.18,26.69]
[1755816727680,42.3,182.19,182.18,0.69]
[1755816729579,47.22276519,182.19,182.18,0.69]
[1755816730867,42.3,182.19,182.18,0.69]
[1755816731781,0.06,182.19,182.18,0.69]
[1755816731982,42.28,182.19,182.18,0.69]
[1755816733771,0.06,182.19,182.18,0.69]
[1755816736889,0.06,182.19,182.18,26.69]
[1755816738594,4.98276519,182.19,182.17,26.0]
[1755816738782,4.98276519,182.19,182.18,26.0]
[1755816739001,4.98276519,182.19,182.18,26.7]
[1755816740486,0.06,182.19,182.18,26.7]
[1755816743976,42.28,182.19,182.18,26.7]
[1755816745773,42.28,182.19,182.18,0.7]
[1755816746803,42.38,182.19,182.18,26.0]
[1755816747107,47.30276519,182.19,182.18,26.0]
[1755816747600,47.30276519,182.19,182.13,0.7]
[1755816747894,4.92276519,182.15,182.13,0.7]
[1755816748105,42.28,182.19,182.13,0.7]
[1755816748106,42.22,182.14,182.13,0.7]
[1755816749692,42.22,182.14,182.13,26.7]
[1755816749882,42.22,182.14,182.13,0.7]
[1755816754018,42.22,182.14,182.13,26.0]
[1755816754181,47.48276519,182.14,182.13,26.0]
[1755816754578,47.48276519,182.14,182.11,26.0]
[1755816754781,4.92276519,182.12,182.11,26.0]
[1755816754976,47.14276519,182.12,182.11,26.0]
[1755816755203,47.14276519,182.12,182.1,26.7]
[1755816755415,47.14276519,182.12,182.11,26.0]
[1755816756314,42.22,182.12,182.11,26.0]
[1755816758417,42.22,182.12,182.11,26.7]
[1755816759299,42.22,182.12,182.11,26.0]
[1755816759495,47.48276519,182.12,182.11,26.0]
[1755816759803,47.14276519,182.12,182.11,26.0]
[1755816760301,47.14276519,182.12,182.1,26.0]
[1755816760692,4.92276519,182.11,182.09,26.7]
[1755816761399,4.92276519,182.11,182.09,26.0]
[1755816761715,4.92276519,182.11,182.1,0.7]
[1755816762014,42.22,182.12,182.11,26.0]
[1755816762317,42.22,182.12,182.09,26.0]
[1755816762616,4.92276519,182.1,182.05,4.92276519]
[1755816762915,42.22,182.09,182.08,26.0]
[1755816765398,47.14276519,182.09,182.07,26.0]
[1755816766409,42.22,182.09,182.07,26.0]
[1755816766610,4.92276519,182.1,182.08,26.7]
[1755816766815,42.24,182.09,182.08,26.7]
[1755816767805,47.50276519,182.09,182.07,26.0]
[1755816768199,5.26276519,182.08,182.04,31.62276519]
[1755816768402,42.24,182.07,182.04,31.62276519]
[1755816768811,47.16276519,182.07,182.04,0.7]
[1755816769030,47.16276519,182.07,182.06,26.0]
[1755816769515,47.16276519,182.07,182.05,26.0]
[1755816770017,42.24,182.06,182.05,26.0]
[1755816771404,42.24,182.06,182.05,26.7]
[1755816775830,42.24,182.06,182.05,26.0]
[1755816776128,47.16276519,182.06,182.05,26.0]
[1755816776830,47.16276519,182.06,182.04,26.0]
[1755816778915,47.16276519,182.06,182.05,26.0]
[1755816779122,42.24,182.06,182.05,26.7]
[1755816779729,42.24,182.06,182.05,0.7]
[1755816779904,42.24,182.06,182.05,26.7]
[1755816780532,132.4,182.09,182.05,31.62276519]
[1755816780742,42.24,182.08,182.07,26.0]
[1755816781035,47.16276519,182.08,182.07,26.7]
[1755816781414,47.16276519,182.08,182.07,26.0]
[1755816781621,47.16276519,182.08,182.06,16.51755]
[1755816782220,47.16276519,182.08,182.06,17.21755]
[1755816785026,42.24,182.07,182.06,17.21755]
[1755816787633,42.24,182.07,182.06,16.51755]
[1755816788737,45.71524709,182.07,182.03,26.73]
[1755816788919,3.13524709,182.06,182.03,26.73]
[1755816789111,42.24,182.05,182.04,16.520279]
[1755816789308,45.37524709,182.05,182.04,16.520279]
[1755816790337,47.14026637,182.05,182.04,16.520279]
[1755816791137,42.24,182.05,182.04,17.220279]
[1755816791933,42.24,182.05,182.04,16.520279]
[1755816792410,47.14026637,182.05,182.04,16.520279]
[1755816793252,47.48026637,182.05,182.03,0.03]
[1755816793548,4.90026637,182.04,182.03,16.550279]
[1755816793722,5.24026637,182.04,182.03,0.03]
[1755816794249,4.90026637,182.04,182.03,0.03]
[1755816796153,4.90026637,182.04,182.03,0.73]
[1755816796322,42.24,182.04,182.03,26.73]
[1755816796743,42.24,182.04,182.03,43.251189]
[1755816796934,47.14026637,182.04,182.03,43.251189]
[1755816798344,47.14026637,182.04,182.03,42.551189]
[1755816798519,47.14026637,182.04,182.03,0.03]
[1755816798844,47.14026637,182.04,182.03,0.74]
[1755816799448,47.14026637,182.04,182.03,0.03]
[1755816800823,47.14026637,182.04,182.03,0.74]
[1755816801027,47.14026637,182.04,182.03,0.03]
[1755816801741,47.48026637,182.04,182.03,0.03]
[1755816802434,47.14026637,182.04,182.03,0.03]
[1755816806025,42.24,182.04,182.03,26.74]
[1755816806235,137.30026637,182.06,182.04,26.0]
[1755816806553,132.4,182.06,182.05,26.71]
[1755816806748,174.64,182.06,182.05,26.71]
[1755816807336,174.7,182.06,182.05,26.71]
[1755816807537,174.7,182.06,182.05,43.229369]
[1755816807733,179.60026637,182.06,182.05,42.519369]
[1755816807943,179.60026637,182.06,182.03,26.74]
[1755816808149,4.90026637,182.05,182.03,42.551189]
[1755816808332,42.24,182.04,182.03,43.261189]
[1755816811257,47.14026637,182.04,182.03,43.261189]
[1755816812158,42.24,182.04,182.03,43.261189]
[1755816812330,47.14026637,182.04,182.03,43.261189]
[1755816812531,42.24,182.04,182.03,43.261189]
[1755816813230,47.14026637,182.04,182.03,43.261189]
[1755816816858,47.14026637,182.04,182.03,42.551189]
[1755816817165,47.14026637,182.04,182.03,0.03]
[1755816817960,47.48026637,182.04,182.03,0.03]
[1755816821151,55.59256582,182.04,182.03,0.03]
[1755816821348,3.70800133,182.04,182.03,0.74]
[1755816821556,47.14026637,182.04,182.03,0.74]
[1755816822074,47.76458951,182.04,182.03,0.03]
[1755816822271,55.58967085,182.04,182.01,0.03]
[1755816822574,5.18458951,182.02,182.01,0.03]
[1755816822859,55.32967085,182.02,182.01,0.03]
[1755816823056,55.66967085,182.02,182.01,0.03]
[1755816825260,51.55117078,182.02,182.01,0.03]
[1755816826684,51.55117078,182.02,182.01,0.74]
[1755816826685,8.60684764,182.02,182.01,0.74]
[1755816826849,50.92684764,182.02,182.01,0.74]
[1755816827051,47.22026637,182.02,182.01,0.74]
[1755816827369,42.32,182.02,182.01,0.74]
[1755816827562,47.22026637,182.02,182.01,0.74]
[1755816833075,47.22026637,182.02,182.01,26.74]
[1755816834650,47.56026637,182.02,182.01,0.03]
[1755816835050,51.54750375,182.02,182.01,0.03]
[1755816837065,50.92318061,182.02,182.01,0.03]
[1755816837868,47.22026637,182.02,182.01,0.03]
[1755816838073,50.92173487,182.02,182.01,0.03]
[1755816841777,47.22026637,182.02,182.01,26.69]
[1755816842360,47.22026637,182.02,182.01,0.69]
[1755816842858,0.06,182.03,182.02,26.0]
[1755816843057,0.06,182.03,182.02,30.90026637]
[1755816843258,0.06,182.03,182.02,31.56026637]
[1755816843462,0.06,182.03,182.02,0.66]
[1755816846997,4.96026637,182.03,182.02,0.66]
[1755816847288,4.96026637,182.03,182.01,0.03]
[1755816847489,47.24026637,182.02,182.01,0.69]
[1755816860788,42.34,182.02,182.01,0.69]
[1755816861086,47.24026637,182.02,182.01,0.03]
[1755816861389,47.24026637,182.02,182.01,0.71]
[1755816862189,42.34,182.02,182.01,0.71]
[1755816862395,47.24026637,182.02,182.01,0.71]
[1755816866672,42.32,182.03,182.01,31.61026637]
[1755816866985,42.32,182.03,182.02,5.58026637]
[1755816868580,0.06,182.03,182.02,5.58026637]
[1755816869494,0.06,182.03,182.02,11.07416813]
[1755816873902,0.06,182.03,182.02,5.58026637]
[1755816875602,0.06,182.03,182.02,4.90026637]
[1755816875813,0.06,182.03,182.02,5.58026637]
[1755816877007,0.06,182.03,182.02,26.68]
[1755816877210,0.06,182.03,182.02,31.58026637]
[1755816879136,0.06,182.03,182.02,26.68]
[1755816879406,0.06,182.03,182.02,31.58026637]
[1755816881104,0.06,182.03,182.02,26.68]
[1755816881986,0.06,182.03,182.02,26.0]
[1755816888397,4.96026637,182.03,182.01,26.03]
[1755816888611,47.14026637,182.02,182.01,26.03]
[1755816890516,42.24,182.02,182.01,26.03]
[1755816890714,47.14026637,182.02,182.01,26.03]
[1755816895029,42.24,182.02,182.01,26.69]
[1755816895409,42.24,182.02,182.01,0.69]
[1755816895812,42.24,182.02,182.01,26.69]
[1755816901662,42.24,182.02,182.01,0.69]
[1755816909744,42.24,182.02,182.01,0.03]
[1755816909926,45.37696748,182.02,182.01,26.03]
[1755816913442,46.00129062,182.02,182.01,0.03]
[1755816913628,53.82870991,182.02,182.01,0.03]
[1755816914034,53.82886812,182.02,182.01,0.03]
[1755816914234,7.8275775,182.02,182.01,0.03]
[1755816914426,42.24,182.02,182.01,0.03]
[1755816914630,45.37696748,182.02,182.01,0.69]
[1755816914861,45.37696748,182.02,182.01,26.69]
[1755816915236,45.37696748,182.02,182.01,26.03]
[1755816915537,42.24,182.02,182.01,26.69]
[1755816916459,42.24,182.02,182.01,0.69]
[1755816916682,42.24,182.02,182.01,26.03]
[1755816917031,4.96192211,182.03,182.01,0.7]
[1755816917032,0.06,182.03,182.01,0.7]
[1755816917354,0.06,182.03,182.02,26.0]
[1755816917548,42.3,182.03,182.02,26.67]
[1755816917937,42.3,182.03,182.02,26.0]
[1755816919258,42.3,182.03,182.02,26.67]
[1755816921462,42.3,182.03,182.02,26.0]
[1755816922673,42.3,182.03,182.02,26.67]
[1755816923793,42.3,182.03,182.02,0.67]
[1755816924078,42.3,182.03,182.02,22.09402011]
[1755816925681,42.3,182.03,182.02,27.58792187]
[1755816925863,42.3,182.03,182.02,22.09402011]
[1755816927149,0.06,182.03,182.02,22.09402011]
[1755816928162,0.06,182.03,182.02,41.18351588]
[1755816931854,0.06,182.03,182.02,16.522098]
[1755816932681,0.06,182.03,182.02,17.192098]
[1755816935596,0.06,182.03,182.02,16.522098]
[1755816935978,0.06,182.03,182.02,17.192098]
[1755816936863,0.06,182.03,182.02,22.09402011]
[1755816940276,0.06,182.03,182.02,27.58792187]
[1755816944318,0.06,182.03,182.02,41.18351588]
[1755816944625,0.06,182.03,182.02,41.46783902]
[1755816945128,0.06,182.03,182.02,17.192098]
[1755816945413,0.06,182.03,182.02,21.42402011]
[1755816946992,0.06,182.03,182.02,16.522098]
[1755816948515,4.96192211,182.03,182.02,16.522098]
[1755816948825,5.30192211,182.03,182.02,16.522098]
[1755816949244,47.52192211,182.03,182.02,16.522098]
[1755816949525,47.52192211,182.03,182.01,0.03]
[1755816949706,5.24192211,182.02,182.01,0.03]
[1755816950314,4.90192211,182.02,182.01,0.03]
[1755816951046,5.24192211,182.02,182.01,0.03]
[1755816952411,47.46192211,182.02,182.01,0.03]
[1755816954534,47.12192211,182.02,182.01,0.03]
[1755816957333,42.22,182.02,182.01,0.73]
[1755816957632,42.22,182.02,182.01,43.252098]
[1755816960407,42.24,182.02,182.01,43.252098]
[1755816961418,42.24,182.02,182.01,0.73]
[1755816962930,0.06,182.03,182.02,26.0]
[1755816963132,42.3,182.03,182.02,26.0]
[1755816964025,47.54192211,182.03,182.01,0.03]
[1755816964220,5.24192211,182.02,182.01,0.03]
[1755816964836,4.90192211,182.02,182.01,0.03]
[1755816965134,47.48192211,182.02,182.01,0.03]
[1755816965631,47.14192211,182.02,182.01,0.03]
[1755816965832,4.90192211,182.02,182.01,0.03]
[1755816966137,47.14192211,182.02,182.01,0.03]
[1755816968123,47.48192211,182.02,182.01,0.03]
[1755816970341,47.14192211,182.02,182.01,0.03]
[1755816975721,47.48192211,182.02,182.01,0.03]
[1755816976135,47.14192211,182.02,182.01,0.03]
[1755816986627,47.14192211,182.02,182.01,0.7]
[1755816987533,47.14192211,182.02,182.01,0.03]
[1755816988134,47.76624525,182.02,182.01,0.03]
[1755816990144,51.47248732,182.02,182.01,0.03]
[1755816990339,51.13248732,182.02,182.01,0.03]
[1755816990746,8.60816418,182.02,182.01,0.03]
[1755816990950,47.14192211,182.02,182.01,0.7]
[1755816991156,50.84932274,182.02,182.01,0.7]
[1755816991542,47.14192211,182.02,182.01,0.7]
[1755816991743,0.06,182.03,182.02,26.0]
[1755816992004,42.3,182.03,182.02,26.0]
[1755816992273,42.3,182.03,182.02,26.67]
[1755816993682,42.3,182.03,182.02,0.67]
[1755816997864,42.3,182.03,182.02,26.67]
[1755817003785,42.3,182.03,182.02,0.67]
[1755817004878,0.06,182.03,182.02,26.67]
[1755817005078,42.28,182.03,182.02,26.67]
[1755817005893,42.28,182.03,182.02,26.7]